Cogmind - Beta 15 @@@ ROGUE MODE // 2025.06.05 @ 20:06:42 Player: Wyvric Result: Core destroyed Performance ------------- Evolutions (5) 2500 Regions Visited (12) 2400 Robots Destroyed (198) 990 Value Destroyed (6534) 6534 Prototype IDs (49) 980 Alien Tech Used (2) 400 Bonus (477) 477 TOTAL SCORE: 14281 Bonus ------- High Alert Combat Kills 158 Follower Combat Kills 60 Met Zhirov 300 Friendly Fire -41 Cogmind --------- Core Integrity 0/1000 Matter 28/300 Energy 342/342 System Corruption 12% Temperature Critical (524) Movement Walking (160) Location -4/Proximity Caves Parts ------- > --- POWER (2) -------- Fission-Neutrino Core > --- PROPULSION (6) --- Myomer-Biometal Exoskeleton > --- UTILITY (6) ------ Armored Scrap Engine Improved Coolant Injector Huge Storage Unit Decoy Drone Bay (0/16) > --- WEAPON (4) ------- Hvy. Energy Projector Construct/C > --- INVENTORY (25) --- Fusion Reactor Cooled Gravmag System Cooled Cesium-ion Thruster Advanced Heat Sink Coolant Injector Experimental Energy Well (600) Matter Compressor (43) Quantum Shading Machine Spectral Analyzer Improved Sensor Array IFF Parser Precision Matter Filter Advanced ECM Suite Gun Armor Advanced System Shield Component Analysis Suite Long-range Tractor Beam Transdimensional Reconstructor Cooled Particle Cannon Cooled Particle Cannon Precision Rocket Launcher Precision Rocket Launcher Multitool Peak State ------------ > --- POWER ------------ Fission-Neutrino Core > --- PROPULSION ------- Myomer-Biometal Exoskeleton > --- UTILITY ---------- Armored Scrap Engine Improved Coolant Injector Huge Storage Unit Spectral Analyzer Advanced Signal Interpreter > --- WEAPON ----------- Long-range Missile Launcher Hvy. Energy Projector Construct/C > --- INVENTORY -------- Fusion Reactor Cooled Gravmag System Cooled Cesium-ion Thruster Advanced Heat Sink Coolant Injector Experimental Energy Well Matter Compressor Quantum Shading Machine Spectral Analyzer Improved Sensor Array IFF Parser Precision Matter Filter Advanced ECM Suite Gun Armor Advanced System Shield Component Analysis Suite Long-range Tractor Beam Decoy Drone Bay Transdimensional Reconstructor Cooled Particle Cannon Cooled Particle Cannon Precision Rocket Launcher Precision Rocket Launcher Multitool [Rating: 126] Favorites ----------- Power Constructs Engine Ion Engine Power Core Constructs Reactor Fusion Reactor Propulsion Light Treads Treads Light Treads Leg Constructs Wheel Compact Wheel Utility Huge Storage Unit Device Armored Scrap Engine Storage Huge Storage Unit Processor Improved Signal Interpreter Hackware Makeshift Hacking Suite Protection Makeshift Light Armor Plating Weapon Constructs Energy Gun Precision Shock Rifle Energy Cannon Constructs Ballistic Gun Minigun Ballistic Cannon Assault Cannon Launcher Heavy Shock Bomb Launcher Special Weapon Multitool Impact Weapon Great Maul Slashing Weapon Greatsword Build | -11 -10 -10 -10 -8 -7 -7 -7 -5 -5 -5 -5 -4 ------- Run | Yrd Mat Min Sub Mat Fac Sto Rec Fac Upp Upp Zhi Pro Slots Evolved 10 | . . . . 4 2 . . 4 . . . . Power 1 | . . . . . . . . 1 . . . . Propulsion 4 | . . . . 2 1 . . 1 . . . . Utility 3 | . . . . 1 . . . 2 . . . . Weapon 2 | . . . . 1 1 . . . . . . . Parts Attached 128 | 7 12 . 6 26 10 9 9 23 8 3 6 9 Power 11 | 1 1 . 1 3 . 1 1 1 . . 2 . Engine 6 | 1 1 . . 2 . 1 1 . . . . . Core 3 | . . . 1 1 . . . 1 . . . . Reactor 2 | . . . . . . . . . . . 2 . Propulsion 20 | 2 1 . . 6 4 4 1 1 . . 1 . Treads 14 | 2 1 . . 6 2 2 . 1 . . . . Leg 1 | . . . . . . . . . . . 1 . Wheel 5 | . . . . . 2 2 1 . . . . . Hover . | . . . . . . . . . . . . . Flight . | . . . . . . . . . . . . . Utility 45 | 2 3 . . 9 1 . 1 13 3 2 2 9 Device 24 | 1 1 . . 3 1 . 1 7 2 1 2 5 Storage 8 | 1 1 . . 3 . . . 2 . . . 1 Processor 8 | . 1 . . 2 . . . 2 . . . 3 Hackware 3 | . . . . . . . . 2 1 . . . Protection 2 | . . . . 1 . . . . . 1 . . Artifact . | . . . . . . . . . . . . . Weapon 52 | 2 7 . 5 8 5 4 6 8 5 1 1 . Energy Gun 5 | . . . . . 1 1 . 2 . 1 . . Energy Cannon 16 | . 6 . 3 1 1 1 2 2 . . . . Ballistic Gun 15 | 2 . . . 4 1 2 3 1 2 . . . Ballistic Cannon 1 | . . . . 1 . . . . . . . . Launcher 9 | . 1 . 2 . 1 . . 1 3 . 1 . Special Weapon 1 | . . . . 1 . . . . . . . . Impact Weapon 4 | . . . . 1 1 . 1 1 . . . . Slashing Weapon 1 | . . . . . . . . 1 . . . . Piercing Weapon . | . . . . . . . . . . . . . Special Melee Weapon . | . . . . . . . . . . . . . Unidentified Prototypes 16 | . . . . 3 . 2 1 1 1 . 4 4 Parts Lost 18 | . 3 . 1 4 1 . 4 1 4 . . . Power 3 | . . . . 1 . . . 1 1 . . . Propulsion 8 | . 1 . . 3 1 . 3 . . . . . Utility 3 | . . . 1 . . . . . 2 . . . Weapon 4 | . 2 . . . . . 1 . 1 . . . Highest Loss Streak 2 | . 2 . 1 2 1 . 2 1 1 . . . To Critical Strikes . | . . . . . . . . . . . . . Average Backups 21 | 6 9 14 12 20 24 32 23 22 23 23 23 23 Power 1 | 1 . . . . 1 1 3 1 . . 1 1 Propulsion 2 | 4 . 2 3 3 3 6 3 . 2 2 3 2 Utility 8 | . 1 3 3 5 7 8 7 12 11 11 12 13 Weapon 7 | . 7 8 6 8 10 15 8 7 8 8 5 4 Tool/Special . | . . . . . . . . . . . . . Unused Backups 119 | . 9 4 6 11 1 7 37 16 4 1 5 18 Power 12 | . 1 . . 2 . 1 5 3 . . . . Propulsion 39 | . 6 . 2 1 . 6 16 2 . . 1 5 Utility 24 | . . . 1 3 1 . 1 6 2 . 1 9 Weapon 43 | . 2 4 3 5 . . 15 5 2 1 3 3 Tool/Special 1 | . . . . . . . . . . . . 1 Average Slot Usage (%) 63 | . 98 100 99 87 93 92 52 46 47 47 44 49 Engine 5 | . 14 14 3 1 7 7 6 1 4 5 2 . Core 2 | . . . 10 4 . . . 3 2 5 4 5 Treads 11 | . 27 28 28 35 35 16 8 . . . . . Leg 1 | . . . . . . . . 2 2 5 5 5 Wheel 2 | . . . . . 2 21 7 . . . . . Device 10 | . 13 14 13 5 6 7 6 10 13 10 8 11 Storage 7 | . 14 14 14 9 7 7 7 5 5 5 5 5 Processor 2 | . . . . 3 . . . 4 5 5 5 9 Energy Cannon 9 | . 26 28 27 17 . . 3 7 4 1 5 5 Ballistic Gun 3 | . 1 . . 4 27 28 4 . . . . . Ballistic Cannon 1 | . . . . . . . 4 1 2 3 . . Peak Build Rating 126 | 7 11 13 15 32 40 43 58 98 97 86 96 126 Average Rating 54 | 4 10 12 13 24 35 39 46 83 85 78 80 113 On Entrance 43 | . 7 11 13 15 32 39 43 58 93 76 80 94 Naked Turns . | . . . . . . . . . . . . . Heaviest Build 229 | 13 35 35 42 221 229 226 227 113 152 147 138 154 Greatest Support 238 | 40 40 40 40 83 105 48 88 120 188 114 128 238 Greatest Overweight (x) 9 | . . . 1 3 8 8 9 1 1 1 1 1 Average Overweight (x) 1 | . . . . 1 1 4 2 . . 1 . . Largest Inventory Capacity 35 | 8 15 15 15 35 35 35 35 25 25 25 25 25 Average Capacity 23 | 7 10 15 15 29 27 35 26 25 25 25 25 25 Most Carried 35 | 8 15 15 15 35 35 35 35 25 25 25 25 25 Average Carried 22 | 6 9 14 14 21 26 34 24 24 24 24 23 24 Final Capacity 35 | 8 15 15 15 25 35 35 25 25 25 25 25 25 Final Carried 35 | 8 14 15 15 25 35 35 25 25 24 25 25 23 Scrap Engine Consumption 248 | . . . . . . . 123 53 47 5 10 10 Constructs Created 4 | . . . . . . . 4 . . . . . Constructs Modified 110 | . . . . . . . 43 32 23 2 5 5 Class Distribution -------------------- 59% | Construct 20% | Mutant 10% | Hauler-Gunner 4% | Gunner Dominant Class ---------------- Mutant | -10/Materials Mutant | -10/Mines Mutant | -10/Subcaves Hauler-Gunner | -8/Materials Tank | -7/Factory Hauler-Gunner | -7/Storage Construct | -7/Recycling Construct | -5/Factory Construct | -5/Upper Caves Construct | -5/Upper Caves Construct | -5/Zhirov Construct | -4/Proximity Caves Resources | -11 -10 -10 -10 -8 -7 -7 -7 -5 -5 -5 -5 -4 ----------- Run | Yrd Mat Min Sub Mat Fac Sto Rec Fac Upp Upp Zhi Pro Matter Collected 7110 | 164 268 20 129 351 602 283 2377 524 932 203 520 737 Remotely 35 | . . . . . . . . . . . . 35 Salvage Created 13809 | 25 674 204 304 746 744 527 6198 2087 1530 104 290 376 Parts 585 | 7 32 13 24 49 23 24 264 67 53 . 22 7 Haulers Intercepted 3 | . 2 . . 1 . . . . . . . . Recyclers Shooed 32 | 1 1 . . 1 . 1 28 . . . . . Parts Field Recycled . | . . . . . . . . . . . . . Retrieved Matter . | . . . . . . . . . . . . . Parts Self-Destructed 44 | . . . 5 . . . . . 20 2 14 3 Prevented 35 | . . . . . . . . . 24 6 . 5 Kills | -11 -10 -10 -10 -8 -7 -7 -7 -5 -5 -5 -5 -4 ------- Run | Yrd Mat Min Sub Mat Fac Sto Rec Fac Upp Upp Zhi Pro Combat Hostiles Destroyed 129 | . 14 4 9 20 8 6 10 25 26 3 . 4 Melee 4 | . . . . 1 1 . . 2 . . . . Guns 21 | . . . . . 6 6 8 1 . . . . Cannons 49 | . 7 4 6 8 . . 2 15 6 . . 1 AOE 31 | . 6 . 3 11 . . . . 5 3 . 3 Classes Destroyed 21 | 1 5 . 2 3 2 1 3 1 2 . . 1 Worker 1 | . . . . . . . . 1 . . . . Builder 30 | . . . . 2 . . 27 1 . . . . Tunneler 6 | 2 1 . . 1 . . 1 1 . . . . Hauler 3 | . 2 . . 1 . . . . . . . . Recycler 69 | . 1 . . 1 4 3 58 2 . . . . Operator 1 | . . . . 1 . . . . . . . . Drone 2 | . . . . . . . . . . . . 2 Watcher 3 | . 1 . . . . . . 2 . . . . Swarmer 17 | . 3 . . 6 . . . . 8 . . . Grunt 58 | . 11 4 . 12 5 2 . 15 6 3 . . Brawler 2 | . . . . . . . 1 1 . . . . Duelist 3 | . . . . . 1 . . . 2 . . . Protector 1 | . . . . . . . 1 . . . . . Sentry 13 | . . . . 2 1 2 4 1 3 . . . Demolisher 1 | . . . . . . . 1 . . . . . Specialist 3 | . . . . . . . . . 3 . . . Hunter 9 | . . . . . . 1 . 4 2 . . 2 Programmer 7 | . . . . . 1 1 . 4 1 . . . Behemoth 1 | . . . . . . . . . 1 . . . Artisan 1 | . . . 1 . . . . . . . . . Subdweller 13 | . . . 9 . . . 4 . . . . . Best Kill Streak 12 | 1 5 2 2 10 6 3 12 4 5 3 . 2 Combat Bots Only 6 | . 5 2 2 6 4 3 2 3 5 3 . 2 Max Kills in Single Turn 3 | 1 3 1 2 3 1 1 1 2 2 1 . 2 Gunslinging . | . . . . . . . . . . . . . Exploded 3 | . 3 . 2 2 . . . . 1 1 . 2 Melee 1 | . . . . 1 1 . . 1 . . . . Uniques/NPCs Destroyed . | . . . . . . . . . . . . . Combat | -11 -10 -10 -10 -8 -7 -7 -7 -5 -5 -5 -5 -4 -------- Run | Yrd Mat Min Sub Mat Fac Sto Rec Fac Upp Upp Zhi Pro Hostile Shots Fired 818 | . 48 9 30 90 74 43 155 179 156 . . 34 Missed 266 | . 8 4 11 16 24 17 61 62 50 . . 13 Hits 552 | . 40 5 19 74 50 26 94 117 106 . . 21 Melee 3 | . . . . . 1 . . . 2 . . . Projectile 549 | . 40 5 19 74 49 26 94 117 104 . . 21 AOE 5 | . . . . . . . 4 1 . . . . Critical Strikes 13 | . . . 1 1 . . . 7 3 . . 1 Part Disruptions 1 | . . . . . 1 . . . . . . . Damage Taken 9702 | . 574 79 355 1058 715 269 966 2542 2167 . . 977 Core 1520 | . 105 11 . 104 34 32 140 521 291 . . 282 Absorbed by Shields 99 | . 63 31 5 . . . . . . . . . Regen/Repaired (Parts) 3340 | . . . . 351 . . 64 1130 1495 . 131 169 Core Remaining (%) 76 | 100 . . 53 81 . . 70 . . . . . Volleys Fired 753 | 23 29 8 42 37 25 20 264 128 99 3 35 40 Largest 4 | 2 2 2 2 3 4 4 4 2 1 1 1 1 Hottest 228 | 40 136 136 136 204 125 100 228 180 90 43 101 113 Shots Fired 1054 | 46 57 16 62 81 68 75 333 136 99 3 35 43 Gun 282 | 46 . . . . 59 75 92 10 . . . . Cannon 667 | . 56 16 56 69 5 . 241 126 63 . 4 31 Launcher 70 | . 1 . 6 12 4 . . . 36 3 . 8 Special 35 | . . . . . . . . . . . 31 4 Kinetic 428 | 46 . . 1 1 56 75 192 30 27 . . . Thermal 430 | . 8 16 56 68 5 . 141 67 3 . 35 31 Explosive 36 | . 1 . 5 12 4 . . . 3 3 . 8 Electromagnetic 160 | . 48 . . . 3 . . 39 66 . . 4 Robot Hit Streak 17 | 10 8 5 6 10 9 12 17 9 7 . 14 15 Robot Miss Streak 6 | 5 2 2 3 4 2 4 6 5 3 . 2 1 Penetration Max 1 | . . . . . . . . 1 . . . . Secondary Targets 1 | . . . . . 1 . . . . . . . Max Gunslinging Chain 1 | . . . . . 1 . . . . . . . Shots Hit Robots 662 | 22 41 11 31 50 47 36 234 96 47 . 30 17 Core Hits 332 | 6 20 6 18 40 21 17 105 53 26 8 6 6 Critical Kills 2 | 1 . . . . . . 1 . . . . . Critical Parts Destroyed 3 | . . . . 1 2 . . . . . . . Critical Strikes 7 | 1 . . . 1 2 . 1 1 . . 1 . Burn 1 | . . . . . . . . . . . 1 . Destroy 2 | 1 . . . . . . 1 . . . . . Smash 3 | . . . . 1 2 . . . . . . . Sever 1 | . . . . . . . . 1 . . . . Melee Attacks 22 | . . . . 1 14 1 . 6 . . . . Impact 17 | . . . . 1 14 1 . 1 . . . . Slashing 5 | . . . . . . . . 5 . . . . Piercing . | . . . . . . . . . . . . . Sneak Attacks . | . . . . . . . . . . . . . Combat Hostiles . | . . . . . . . . . . . . . Follow-up Attacks . | . . . . . . . . . . . . . Damage Inflicted 24801 | 177 1512 225 1086 2145 1270 653 7676 4580 3389 158 592 1338 Guns 2789 | 177 . . . . 702 653 1067 190 . . . . Cannons 16489 | . 976 225 644 967 . . 6609 4145 1522 . 377 1024 Explosions 4626 | . 536 . 442 1097 136 . . 103 1867 158 . 287 Melee 637 | . . . . 63 432 . . 142 . . . . Ramming 18 | . . . . 18 . . . . . . . . Kinetic 6982 | 177 . . 92 25 669 653 3646 912 808 . . . Thermal 9766 | . 292 225 644 942 . . 4030 2118 216 . 592 707 Explosive 2400 | . 348 . 350 972 136 . . . 149 158 . 287 Electromagnetic 4998 | . 872 . . 125 33 . . 1408 2216 . . 344 Impact 495 | . . . . 63 432 . . . . . . . Slashing 142 | . . . . . . . . 142 . . . . Piercing . | . . . . . . . . . . . . . Highest Corruption 12 | . . . . . 5 5 5 6 12 12 12 12 Average Corruption 7 | . . . . . 4 5 5 4 8 12 12 12 Corruption Purged . | . . . . . . . . . . . . . Corruption Blocked . | . . . . . . . . . . . . . Effects 461 | . . . . . 8 15 164 34 110 30 40 60 Message Errors 123 | . . . . . 2 4 45 12 30 6 4 20 Matter Fused 118 | . . . . . 4 6 39 8 20 11 12 18 Heat Flow Errors 58 | . . . . . . 1 21 5 15 3 7 6 Energy Discharges 56 | . . . . . . 3 18 4 17 6 5 3 Parts Rejected 3 | . . . . . . . . . 2 . . 1 Parts Fused 4 | . . . . . . . 4 . . . . . Data Loss (minor) 57 | . . . . . 2 . 19 3 20 1 5 7 Data Loss (major) 23 | . . . . . . 1 7 2 3 3 5 2 Misfires 5 | . . . . . . . 1 . 1 . . 3 Alerts 8 | . . . . . . . 5 . 1 . 2 . Weapon Failures 6 | . . . . . . . 5 . 1 . . . Overload Shots 12 | . . . . . . . 2 9 1 . . . Effects 1 | . . . . . . . . 1 . . . . Energy Bleed 1 | . . . . . . . . 1 . . . . Overflow Damage 1652 | . 41 . . 90 202 . 737 243 134 . 111 94 Projectiles 1308 | . . . . 18 . . 737 243 123 . 111 76 Explosions 79 | . 41 . . 9 . . . . 11 . . 18 Melee 265 | . . . . 63 202 . . . . . . . Knockbacks 23 | . . . . 1 3 . 13 . 6 . . . Impact 2 | . . . . . 2 . . . . . . . Kinetic 20 | . . . . 1 . . 13 . 6 . . . Secondary 1 | . . . . . 1 . . . . . . . Self-Inflicted Damage 851 | . 173 . . 34 . . . 282 184 . . 178 Shots 20 | . 4 . . 2 . . . 3 8 . . 3 Rammed 4 | . . 1 . 3 . . . . . . . . Targets Rammed 4 | . . 1 . 3 . . . . . . . . Kicked . | . . . . . . . . . . . . . Crushed . | . . . . . . . . . . . . . Highest Temperature 524 | . 228 243 150 473 245 203 342 247 284 212 246 524 Average Temperature 83 | . 73 99 45 142 65 66 81 36 61 83 88 126 Received Heat Transfer 2308 | . 189 30 42 477 246 36 180 483 219 . . 406 Effects 13 | . . . . 5 . . 1 . . . . 7 Energy Bleed 2 | . . . . 1 . . . . . . . 1 Interference 6 | . . . . 2 . . 1 . . . . 3 Matter Decay 2 | . . . . 1 . . . . . . . 1 Short Circuit 1 | . . . . 1 . . . . . . . . Damage (minor) 1 | . . . . . . . . . . . . 1 Damage (core) 1 | . . . . . . . . . . . . 1 Siege Activations . | . . . . . . . . . . . . . Martial Activations . | . . . . . . . . . . . . . Shielding Activations . | . . . . . . . . . . . . . Robots Disrupted 1 | . . . . . . . . 1 . . . . Combat Hostiles 1 | . . . . . . . . 1 . . . . Robots Corrupted 24 | . 2 . . . 1 . . 4 15 . . 2 Combat Hostiles 22 | . 1 . . . 1 . . 4 15 . . 1 Parts Fried 40 | . 2 . . . 1 . . 12 21 1 . 3 Impact Corruptions 10 | . . . . 3 7 . . . . . . . Robots Melted 3 | . . . . . . . . 3 . . . . Combat Hostiles 3 | . . . . . . . . 3 . . . . Parts Melted 16 | . . . . 2 . . 1 13 . . . . Heat Transferred 12730 | . 435 407 1110 1702 . . 3816 3678 240 . 872 470 Parts Sabotaged . | . . . . . . . . . . . . . Parts Stolen . | . . . . . . . . . . . . . Parts Stripped . | . . . . . . . . . . . . . Power Chain Reactions 7 | . 4 . . 1 . . . 1 1 . . . Alert | -11 -10 -10 -10 -8 -7 -7 -7 -5 -5 -5 -5 -4 ------- Run | Yrd Mat Min Sub Mat Fac Sto Rec Fac Upp Upp Zhi Pro Maximum Alert Level 2 | . 1 . . 1 . . 2 2 . . . . Low Security (%) 68 | 100 87 100 . 95 100 100 60 19 . . . . Level 1 13 | . 12 . . 4 . . 14 30 . . . . Level 2 18 | . . . . . . . 25 50 . . . . Level 3 . | . . . . . . . . . . . . . Level 4 . | . . . . . . . . . . . . . Level 5 . | . . . . . . . . . . . . . High Security . | . . . . . . . . . . . . . Max Security . | . . . . . . . . . . . . . Peak Influence 615 | 5 253 59 . 235 110 93 431 615 . . . . Initial 280 | . . 7 . . 20 26 8 280 . . . . Average 154 | . 103 7 . 73 46 39 170 357 . . . . Influence Increases 4519 | 10 491 130 . 688 241 227 763 1069 740 70 15 75 Destroy 0b10 Robot/C 2280 | . 280 80 . 400 160 120 120 500 520 60 . 40 Destroy 0b10 Robot/NC 665 | 10 25 . . 30 20 15 490 35 . . 15 25 Destroy Leader 382 | . 66 20 . 82 40 40 . 104 10 10 . 10 Successful Hack 59 | . 17 . . 5 . 5 18 14 . . . . Select Force Hacks 60 | . 30 . . . . . 30 . . . . . Disable Machine 255 | . 15 . . 45 . 45 30 120 . . . . Destroy Structure 403 | . 43 . . 66 21 2 75 196 . . . . Advance Influence 100 | . . . . . . . . 100 . . . . Lose Combat Pursuer 315 | . 15 30 . 60 . . . . 210 . . . Influence Decreases 4519 | 10 471 121 29 642 229 263 354 887 930 465 43 75 Entered New Map 688 | . . 13 16 . 26 32 14 251 227 81 28 . Time Decay 3566 | 10 441 108 . 487 193 231 323 626 673 384 15 75 Lost Part 122 | . 30 . . 40 10 . 2 10 30 . . . Lost Ally 13 | . . . 13 . . . . . . . . . Purge Threat 130 | . . . . 115 . . 15 . . . . . Squads Dispatched 19 | . 4 . . 4 2 1 . 8 . . . . Investigation 4 | . 3 . . . . . . 1 . . . . Extermination 5 | . . . . . 1 1 . 3 . . . . Reinforcement 10 | . 1 . . 4 1 . . 4 . . . . Assault . | . . . . . . . . . . . . . Garrison . | . . . . . . . . . . . . . Intercept . | . . . . . . . . . . . . . Searches Triggered . | . . . . . . . . . . . . . Construction Impeded 4 | . . . . 2 1 . . 1 . . . . Haulers Reinforced . | . . . . . . . . . . . . . Active Scanning Responses . | . . . . . . . . . . . . . Cargo Convoy Interrupts 1 | . . . . . . . . 1 . . . . Stealth | -11 -10 -10 -10 -8 -7 -7 -7 -5 -5 -5 -5 -4 --------- Run | Yrd Mat Min Sub Mat Fac Sto Rec Fac Upp Upp Zhi Pro Distress Signals 3 | . 1 . . . . . 1 1 . . . . Communications Jammed . | . . . . . . . . . . . . . Distress Signals . | . . . . . . . . . . . . . Times Spotted 168 | . 22 6 10 30 9 8 9 34 32 . . 8 Peak Tracking Total 8 | . 5 2 2 6 4 3 2 5 8 1 . 2 Tactical Retreats 14 | . 1 2 . 4 . . . . 7 . . . Traps | -11 -10 -10 -10 -8 -7 -7 -7 -5 -5 -5 -5 -4 ------- Run | Yrd Mat Min Sub Mat Fac Sto Rec Fac Upp Upp Zhi Pro Traps Triggered 4 | . 3 . . 1 . . . . . . . . Indirectly . | . . . . . . . . . . . . . Trap Hack Attempts . | . . . . . . . . . . . . . Triggered . | . . . . . . . . . . . . . Disarmed . | . . . . . . . . . . . . . Reprogrammed . | . . . . . . . . . . . . . Reused . | . . . . . . . . . . . . . Traps Extracted . | . . . . . . . . . . . . . Installed . | . . . . . . . . . . . . . Triggered . | . . . . . . . . . . . . . Machines | -11 -10 -10 -10 -8 -7 -7 -7 -5 -5 -5 -5 -4 ---------- Run | Yrd Mat Min Sub Mat Fac Sto Rec Fac Upp Upp Zhi Pro Machines Disabled 27 | . 1 . 1 3 . 3 2 8 9 . . . Max in Single Turn 2 | . 1 . 1 1 . 1 1 2 2 . . . Machines Repaired . | . . . . . . . . . . . . . Machines Dismantled . | . . . . . . . . . . . . . Machines Sabotaged . | . . . . . . . . . . . . . Overloaded Fab Kills . | . . . . . . . . . . . . . Hacking | -11 -10 -10 -10 -8 -7 -7 -7 -5 -5 -5 -5 -4 --------- Run | Yrd Mat Min Sub Mat Fac Sto Rec Fac Upp Upp Zhi Pro Machines Accessed 45 | . 7 2 1 11 1 2 9 8 . . 4 . Terminals 27 | . 6 . . 7 1 2 4 7 . . . . Fabricators . | . . . . . . . . . . . . . Repair Stations 2 | . . . . 2 . . . . . . . . Recycling Units 5 | . 1 . . . . . 4 . . . . . Scanalyzers 3 | . . . . 2 . . . 1 . . . . Garrison Access . | . . . . . . . . . . . . . Total Hacks 124 | . 22 2 1 38 1 5 23 15 . . 17 . Successful 75 | . 13 2 1 28 . 3 9 2 . . 17 . Failed 48 | . 8 . . 10 1 2 14 13 . . . . Catastrophic 10 | . 2 . . . 1 . 2 5 . . . . Database Lockouts 1 | . 1 . . . . . . . . . . . Manual 66 | . 18 . . 18 . 4 17 9 . . . . Terminals 71 | . 21 . . 20 1 5 10 14 . . . . Fabricators . | . . . . . . . . . . . . . Repair Stations 8 | . . . . 8 . . . . . . . . Recycling Units 12 | . 1 . . . . . 11 . . . . . Scanalyzers 11 | . . . . 10 . . . 1 . . . . Garrison Access . | . . . . . . . . . . . . . Terminal Hacks 33 | . 4 2 1 2 . 1 4 2 . . 17 . Record 5 | . . . . . . . . . . . 5 . Part Schematic 6 | . 1 . . . . . . 1 . . 4 . Robot Analysis 5 | . . . . 1 . . . . . . 4 . Prototype ID Bank 7 | . 2 . . . . . 1 . . . 4 . Open Door 3 | . . 2 . . . 1 . . . . . . Branch Access Points 1 | . . . . . . . . 1 . . . . Unreport Threat 2 | . . . . 1 . . 1 . . . . . Hauler Manifests 1 | . 1 . . . . . . . . . . . Proto ID Catalog 1 | . . . 1 . . . . . . . . . Release Object 2 | . . . . . . . 2 . . . . . Fabricator Hacks . | . . . . . . . . . . . . . Repair Station Hacks 7 | . . . . 7 . . . . . . . . Scan Component 4 | . . . . 4 . . . . . . . . Repair 3 | . . . . 3 . . . . . . . . Recycling Unit Hacks . | . . . . . . . . . . . . . Scanalyzer 10 | . . . . 10 . . . . . . . . Insert Component 6 | . . . . 6 . . . . . . . . Analyze 4 | . . . . 4 . . . . . . . . Garrison Access Hacks . | . . . . . . . . . . . . . Unauthorized Hacks 25 | . 9 . . 9 . 2 5 . . . . . Terminals 20 | . 8 . . 9 . 2 1 . . . . . Botnet 7 | . 3 . . 3 . 1 . . . . . . Skim 13 | . 5 . . 6 . 1 1 . . . . . Fabricators . | . . . . . . . . . . . . . Repair Stations . | . . . . . . . . . . . . . Recycling Units 5 | . 1 . . . . . 4 . . . . . Monitor 1 | . . . . . . . 1 . . . . . Reject 1 | . . . . . . . 1 . . . . . Mask 1 | . . . . . . . 1 . . . . . Tunnel 2 | . 1 . . . . . 1 . . . . . Scanalyzers . | . . . . . . . . . . . . . Garrison Access . | . . . . . . . . . . . . . Data Cores Recovered . | . . . . . . . . . . . . . Used . | . . . . . . . . . . . . . Hacking Detections 30 | . 5 . . 10 1 1 6 7 . . . . Full Trace Events 2 | . . . . . . . 1 1 . . . . Feedback Events . | . . . . . . . . . . . . . Feedback Blocked . | . . . . . . . . . . . . . Robot Schematics Acquired . | . . . . . . . . . . . . . Robots Built . | . . . . . . . . . . . . . Authchips . | . . . . . . . . . . . . . Time . | . . . . . . . . . . . . . Total Robot Build Rating . | . . . . . . . . . . . . . Part Schematics Acquired 9 | . 1 . . 3 . . . 1 . . 4 . Parts Built . | . . . . . . . . . . . . . Authchips . | . . . . . . . . . . . . . Time . | . . . . . . . . . . . . . Total Part Build Rating . | . . . . . . . . . . . . . Parts Repaired 3 | . . . . 3 . . . . . . . . Time 84 | . . . . 84 . . . . . . . . Parts Recycled . | . . . . . . . . . . . . . Recycled Matter . | . . . . . . . . . . . . . Retrieved Matter . | . . . . . . . . . . . . . Retrieved Components . | . . . . . . . . . . . . . Parts Scanalyzed 3 | . . . . 3 . . . . . . . . Part Schematics Acquired 3 | . . . . 3 . . . . . . . . Parts Damaged . | . . . . . . . . . . . . . Bothacking | -11 -10 -10 -10 -8 -7 -7 -7 -5 -5 -5 -5 -4 ------------ Run | Yrd Mat Min Sub Mat Fac Sto Rec Fac Upp Upp Zhi Pro Used RIF Installer . | . . . . . . . . . . . . . Robots Hacked . | . . . . . . . . . . . . . Non-combat . | . . . . . . . . . . . . . Combat . | . . . . . . . . . . . . . Robot Hacks Applied . | . . . . . . . . . . . . . Relay Couplers Released . | . . . . . . . . . . . . . Fabnet Peak Effective % . | . . . . . . . . . . . . . Robots Rewired 1 | . . . . . . . 1 . . . . . Allies Hacked . | . . . . . . . . . . . . . Hacks Repelled . | . . . . . . . . . . . . . Allies | -11 -10 -10 -10 -8 -7 -7 -7 -5 -5 -5 -5 -4 -------- Run | Yrd Mat Min Sub Mat Fac Sto Rec Fac Upp Upp Zhi Pro Total Allies 4 | . . 3 . . . . 1 . . . . . Largest Group 3 | . . 3 3 . . . 1 . . . . . Highest-Rated Group 40 | . . 40 40 . . . 40 . . . . . Highest-Rated Ally 40 | . . 16 16 . . . 40 . . . . . Total Orders . | . . . . . . . . . . . . . Ally Attacks 19 | . . . 19 . . . . . . . . . Total Damage 197 | . . . 197 . . . . . . . . . Kills 2 | . . . 2 . . . . . . . . . Allies Corrupted . | . . . . . . . . . . . . . Allies Melted . | . . . . . . . . . . . . . Intel | -11 -10 -10 -10 -8 -7 -7 -7 -5 -5 -5 -5 -4 ------- Run | Yrd Mat Min Sub Mat Fac Sto Rec Fac Upp Upp Zhi Pro Active Infowar (turns) 10271 | 14 347 . 1478 532 157 . . 1715 3402 946 378 1302 Optics 1013 | . . . . . . . . . . . . 1013 Sensors 6692 | . . . . . . . . 754 3402 946 378 1212 Structural 1256 | . . . . 498 157 . . 601 . . . . Seismic 1873 | 14 347 . 1478 34 . . . . . . . . Machine Analysis 960 | . . . . . . . . 960 . . . . Jamming 2 | . . . . . . . . 2 . . . . ECM 11 | . . . . . . . . 11 . . . . Robot Analysis Total 5 | . . . . 1 . . . . . . 4 . Derelict Logs Recovered 5 | . . 1 1 . . . . . 1 . . 2 Drone Launches 16 | . . . . . . . . . . . . 16 Drone Recoveries . | . . . . . . . . . . . . . Exploration | -11 -10 -10 -10 -8 -7 -7 -7 -5 -5 -5 -5 -4 ------------- Run | Yrd Mat Min Sub Mat Fac Sto Rec Fac Upp Upp Zhi Pro Turns Passed 22974 | 244 1510 1011 1507 1902 610 539 6433 2149 3688 959 1004 1418 Spaces Moved 8935 | 107 825 582 840 600 213 254 1966 928 1251 372 276 721 Core 4 | 4 . . . . . . . . . . . . Treads 3827 | 103 825 582 840 600 177 . 544 . 156 . . . Legs 2606 | . . . . . . . . 459 778 372 276 721 Wheels 2006 | . . . . . 36 254 1422 193 101 . . . Hover 79 | . . . . . . . . 79 . . . . Flight 413 | . . . . . . . . 197 216 . . . Fastest Speed 50 | 50 160 160 160 160 157 160 106 135 148 246 148 160 Average Speed 192 | 155 160 160 160 260 219 168 187 185 230 246 201 169 Slowest Speed 418 | 160 160 160 240 418 326 210 239 223 254 246 258 258 Overloaded Moves . | . . . . . . . . . . . . . Propulsion Burnouts . | . . . . . . . . . . . . . Robots Hopped . | . . . . . . . . . . . . . Potential Cave-ins 4 | . . . . . . . . 4 . . . . Cave-ins Triggered . | . . . . . . . . . . . . . Exploration Rate (%) 58 | 7 99 100 49 52 9 35 98 30 95 58 61 73 Regions Visited 12 Branch Regions 8 Pre-discovered Areas 11 | . 4 1 1 1 . . 1 . . . 3 . Known Exits Taken 9 | . 1 1 . 1 1 . 1 1 1 1 1 . Unknown Exits Taken 3 | 1 . . 1 . . 1 . . . . . . Scrap Searched 12 | . . 1 5 . . . . . 2 1 . 3 Spaces Dug 131 | . . . . . 8 1 7 62 5 . . 48 Terrain Destroyed 680 | . 53 . 24 78 25 1 76 146 67 55 . 155 Melee 1 | . . . . . . 1 . . . . . . Projectile 148 | . . . . . 1 . 76 38 16 . . 17 AOE 531 | . 53 . 24 78 24 . . 108 51 55 . 138 Terrain Rammed . | . . . . . . . . . . . . . Walls Destroyed . | . . . . . . . . . . . . . Machines Disabled . | . . . . . . . . . . . . . Actions | -11 -10 -10 -10 -8 -7 -7 -7 -5 -5 -5 -5 -4 --------- Run | Yrd Mat Min Sub Mat Fac Sto Rec Fac Upp Upp Zhi Pro Total 13791 | 145 960 647 935 867 294 336 4452 1210 1954 415 699 877 Wait 3326 | . 56 49 26 121 5 6 2065 27 557 26 334 54 Move 8923 | 106 824 581 839 599 212 253 1965 927 1250 371 275 721 Hop . | . . . . . . . . . . . . . Pick Up 252 | 9 22 4 9 39 16 17 52 36 11 4 19 14 Fast Attach 57 | 6 2 . 1 5 2 8 3 7 5 3 6 9 Attach 55 | 1 3 . 1 13 6 . 8 7 9 2 3 2 Detach 23 | . . . . 3 1 . 8 3 5 1 1 1 Swap 102 | . 9 . 7 19 8 6 4 29 7 . 2 11 Drop 261 | . 15 4 10 26 5 25 72 39 11 5 24 25 Fire 753 | 23 29 8 42 37 25 20 264 128 99 3 35 40 Melee 22 | . . . . 1 14 1 . 6 . . . . Ram . | . . . . . . . . . . . . . Kick . | . . . . . . . . . . . . . Crush 4 | . . 1 . 3 . . . . . . . . Escape Stasis . | . . . . . . . . . . . . . Rewire 11 | . . . . . . . 11 . . . . . Trap . | . . . . . . . . . . . . . Miscellaneous 2 | . . . . 1 . . . 1 . . . . Route ------- -11/Scrapyard -10/Materials (discovered 6 exits: *Mat x3 / *Min x2 / Sub) -10/Mines (discovered 4 exits: *Mat x2 / [*Exi] / *Sub) -10/Subcaves (discovered 2 exits: *Mat x2) -8/Materials (discovered 3 exits: *Fac x3) -7/Factory (discovered 6 exits: Fac x3 / *Sto x2 / Low) -7/Storage (discovered 2 exits: *Fac / *Rec) -7/Recycling -5/Factory (discovered 4 exits: *Fac x2 / *Upp x2) -5/Upper Caves -5/Upper Caves (discovered 2 exits: *Fac / *Zhi) -5/Zhirov -4/Proximity Caves (discovered 1 exit: Fac) History --------- Turn | Location | Event 37 | -11/Scrapyard | Discovered new exit (range 15) 245 | -11/Scrapyard | Entered Materials 265 | -10/Materials | Discovered new exit (range 16) 313 | -10/Materials | Build established: Mutant 398 | -10/Materials | Central database locked down 471 | -10/Materials | Discovered new exit (range 11) 686 | -10/Materials | Discovered new exit (range 15) 978 | -10/Materials | Discovered new exit (range 15) 1239 | -10/Materials | Discovered new exit (range 5) 1347 | -10/Materials | Learned location of Mines (-9) 1452 | -10/Materials | Loaded intel: 2 recycling unit locations 1490 | -10/Materials | Identified exit to Subcaves 1490 | -10/Materials | Learned location of 1 exit from Materials 1552 | -10/Materials | Learned 2 Storage zone layouts 1683 | -10/Materials | Identified exit to Materials 1752 | -10/Materials | Identified exit to Mines 1755 | -10/Materials | Entered Mines 1762 | -10/Mines | Received a Rocket Launcher from a helpful Derelict 1912 | -10/Mines | Met a Derelict who couldn't figure out how to use a Trap Extractor 2006 | -10/Mines | Found the Drone Emporium 2095 | -10/Mines | Found Prototype Device 2359 | -10/Mines | Learned Materials interactive machine intel 2394 | -10/Mines | Discovered exit to Materials (range 15) 2622 | -10/Mines | Discovered exit to Subcaves (range 7) 2663 | -10/Mines | Discovered exit to Materials (range 11) 2684 | -10/Mines | Assisted by bots powering up and referring to "LRC-V3" 2722 | -10/Mines | Deemed a non-threat by the Exiles lab entrance 2722 | -10/Mines | Discovered new exit (range 5) 2766 | -10/Mines | Entered Subcaves 2766 | -10/Subcaves | Accompanied by 3 allies 2767 | -10/Subcaves | Approached by a straggling Scientist 2771 | -10/Subcaves | Ambushed by Subdwellers from Twisted Machinery 3246 | -10/Subcaves | Shifting Twisted Machinery released Sub. Machine Gun 3250 | -10/Subcaves | Discovered new exit (range 3) 3517 | -10/Subcaves | Shifting Twisted Machinery released Sub. Beam Cannon 3541 | -10/Subcaves | Shifting Twisted Machinery released Sub. Shrapnel Launcher 3874 | -10/Subcaves | Ambushed by Subdwellers from Twisted Machinery 3943 | -10/Subcaves | A swath of the cavern ceiling suddenly collapsed 4022 | -10/Subcaves | Shifting Twisted Machinery released Mak. Thermal Plating 4032 | -10/Subcaves | Discovered new exit (range 11) 4055 | -10/Subcaves | Shifting Twisted Machinery released Sub. Laser 4182 | -10/Subcaves | Visited 4L-MR0's lab 4195 | -10/Subcaves | Found Gun Armor 4273 | -10/Subcaves | Entered Materials 4273 | -8/Materials | Evolved 4 slots: Propulsion x2, Utility x1, Weapon x1 4274 | -8/Materials | Identified exit to Factory 4275 | -8/Materials | Loaded intel: 19 interactive machine locations 4322 | -8/Materials | Identified Decoy Drone Bay 4557 | -8/Materials | Repaired Lgt. Treads 4683 | -8/Materials | Build established: Gunner 4947 | -8/Materials | Discovered exit to Factory (range 16) 5305 | -8/Materials | Build established: Hauler-Skirmisher 5364 | -8/Materials | Learned location of 3 exits from Factory 5388 | -8/Materials | Learned location of 1 exit from Recycling 5400 | -8/Materials | Learned location of Recycling (-7) 5401 | -8/Materials | Learned Factory trap positions 5430 | -8/Materials | Learned location of 2 exits from Lower Caves 5868 | -8/Materials | Build established: Hauler-Gunner 6116 | -8/Materials | Repaired Humpback 6149 | -8/Materials | Repaired Spk. Treads 6175 | -8/Materials | Entered Factory 6175 | -7/Factory | Evolved 2 slots: Propulsion x1, Weapon x1 6176 | -7/Factory | Identified exit to Factory 6176 | -7/Factory | Identified exit to Storage 6177 | -7/Factory | Identified exit to Lower Caves 6178 | -7/Factory | Loaded intel: 103 trap records 6361 | -7/Factory | Build established: Tank 6785 | -7/Factory | Entered Storage 6933 | -7/Storage | Build established: Hauler-Gunner 7026 | -7/Storage | Used back door to open Recycling access 7026 | -7/Storage | Discovered new exit (range 5) 7173 | -7/Storage | Discovered exit to Factory (range 16) 7324 | -7/Storage | Entered Recycling 7325 | -7/Recycling | Identified exit to Factory 8359 | -7/Recycling | Entered Scraplab 8365 | -7/Recycling | Found Prototype Device 8373 | -7/Recycling | Identified Scrap Engine 8876 | -7/Recycling | Build established: Gunner 9333 | -7/Recycling | Build established: Construct 13757 | -7/Recycling | Entered Factory 13757 | -5/Factory | Evolved 4 slots: Power x1, Propulsion x1, Utility x2 14721 | -5/Factory | Identified exit to Upper Caves 14802 | -5/Factory | Discovered new exit (range 9) 15311 | -5/Factory | Discovered new exit (range 7) 15803 | -5/Factory | Cargo convoy interrupted 15815 | -5/Factory | Core integrity fell below 50% 15906 | -5/Factory | Entered Upper Caves 15971 | -5/Upper Caves | Found Alien Artifact 15971 | -5/Upper Caves | Identified Core Expander 15971 | -5/Upper Caves | Installed Core Expander, added new Utility slot 16363 | -5/Upper Caves | Identified exit to Upper Caves 16410 | -5/Upper Caves | Attracted the attention of an 0b10 checkpoint 17564 | -5/Upper Caves | Spotted B-75 Beast 17592 | -5/Upper Caves | Destroyed B-75 Beast 17902 | -5/Upper Caves | Acquired the password to a Derelict Tinkerer's latest research 18178 | -5/Upper Caves | System corruption reached 10% 18540 | -5/Upper Caves | Caught by Unaware searching for contraband prototypes 18697 | -5/Upper Caves | Attracted the attention of an 0b10 base 18824 | -5/Upper Caves | Core integrity fell below 20% 19154 | -5/Upper Caves | Caught by Unaware searching for contraband prototypes 19594 | -5/Upper Caves | Entered another Upper Caves area 19594 | -5/Upper Caves | Discovered new exit (range 16) 19947 | -5/Upper Caves | Entered a destroyed Warlord outpost 20491 | -5/Upper Caves | Discovered new exit (range 8) 20511 | -5/Upper Caves | Identified exit to Zhirov 20553 | -5/Upper Caves | Entered Zhirov 20553 | -5/Zhirov | Discovered new exit (range 4) 20598 | -5/Zhirov | Met Zhirov 20642 | -5/Zhirov | Learned location of Quarantine (-3) 20642 | -5/Zhirov | Learned location of Testing (-2) 20642 | -5/Zhirov | Learned location of Command (-1) 20679 | -5/Zhirov | Zhirov requested help retrieving the SGEMP Prototype 20716 | -5/Zhirov | Found Alien Artifact 20716 | -5/Zhirov | Identified Integrated Reactor 20716 | -5/Zhirov | Installed Integrated Reactor, increased core energy generation (+10) 20748 | -5/Zhirov | Found Alien Artifact 21554 | -5/Zhirov | Identified exit to Proximity Caves 21557 | -5/Zhirov | Entered Proximity Caves 21758 | -4/Proximity Caves | Found Prototype Processor 21758 | -4/Proximity Caves | Identified Spectral Analyzer 21767 | -4/Proximity Caves | Found Spectral Analyzer 21906 | -4/Proximity Caves | Found Spectral Analyzer 21983 | -4/Proximity Caves | Identified exit to Factory 22627 | -4/Proximity Caves | Spotted B-86 Titan 22976 | -4/Proximity Caves | Core destroyed Last Messages --------------- 22953_ Decoy Drone self-destructs. 22953_ Decoy Drone destroyed. 22953_ Knocked back. 22954_ Decoy Drone self-destructs. 22954_ Decoy Drone destroyed. 22956_ Slug penetrates Wall. 22958_ QKL74 >ZQMH3|,< KY3UJ>9CNZU9JXX%WIO7 22962_ Knocked back. 22962_ Penetrated by Slug. 22962_ Slug penetrates Wall. 22966_ B-86 Titan activates siege mode. 22966_ Knocked back. 22967_ Acquired 2 matter. 22971_ Acquired 7 matter. 22971_ Acquired 2 matter. 22971_ Acquired 6 matter. 22973_ Acquired 10 matter. 22975_ Critical hit (Meltdown: +370). 22975_ Penetrated by Slug. 22976_ Overheating: Core damaged (-170). Map ----- +----------------------------------------------------+ | #???????????????????????????????????????????????? | | ##???????????????????????????????????????????????? | | ?????????????????????????????????????????????????? | | ?????????????????????????????????????????????????? | | ?????????????????????????????????????????????????? | | ?????????????????????????????????????????????????? | | #????????????????????????????????????????????????? | | ##???????????????????????????????????????????????? | | #???????????????????????????????????????????????? | | #??????????????????????????????????????????????? | | ###??????????????????????????????????????????????? | | #####????????????????????????????????????????????? | | #????????????????????????????????????????????? | | ## #??????#?????????????????????????????????????? | | ?# #?????? ##???????????????????????????????????? | | ?# #??##### #???????????????????????????????????? | | ?# %#?## ####????????????????????????????????? | | ?# ### # ##??###??????????????????????????? | | ?# ## " #?## #?????????????????????????? | | ?# ] #?# ?????????????????????????? | | ?# % # #### #?????????????????????????? | | ?# "##"## #?????????????????????????? | | ?## ## ###"" ### ##?##?????????????????????? | | ??# ########" % ## ;#;#?????????????????????? | | ?## #"#### % ### % ##?????????????????????? | | ## %""% "## @;#?????????????????????? | | # %% ;;#?????????????????????? | | ;;##?????????????????????? | | % ;##??????????????????????? | | # %## ;; ##???????????????????????? | | ## #### ##;; BB ?????????????????????? | | ## ##?######;; BB ??????????????????? | | # ##?????### ## ???????????????? | | #???????# ##???????????????????? | | #???????# # ##????????????????????? | | # ###???????##;##### #?????????????????????? | | # #??????????##????# #????????????????????? | | # ###???????????##?## ????????????????????? | | # #???????#### #???#######???????????????????? | | #?####?## #"#??????????????????????????????? | | ### ### #?????##????????????????????????? | | ####?# #????????????????????????? | | ## #?????????????????????????? | | # #"###????????????????????????? | | ## " #????????????????????????? | | ## #### ####????????????????????????? | | # #??####### #???????????????????????????? | | #????????## ##???????????????????????????? | | #?????????######????????????????????????????? | | ### ##???????????????????????????????????????????? | +----------------------------------------------------+ Best States ------------- Heat Dissipation 86 Coolant Potential 80 Energy Generation 41 Energy Capacity 484 Matter Stores 300 Matter Capacity 300 Sight Range 24 Robot Scan Range 15 Terrain Scan Density 10 ECM Strength 2 Jamming Range 12 Additional Mass Support 20 EM Shielding 4 Armor Coverage 600 Evasion (%) 55 Targeting Accuracy 16 Recoil Reduction 5 Matter Filtering 50 Kinecelleration 30 Offensive Hacking 24 Item Schematics ----------------- Huge Storage Unit | -10/Materials | Hacked Humpback | -8/Materials | Scanalyzed Sub. Shrapnel Launcher | -8/Materials | Scanalyzed Multitool | -8/Materials | Scanalyzed Weapon Mount | -5/Factory | Hacked Assault Drone Bay | -5/Zhirov | Free Exp. Heat Sink | -5/Zhirov | Free Exp. Optical Array | -5/Zhirov | Free Imp. Arc Thrower | -5/Zhirov | Free Robot Schematics ------------------ None Fabricated ------------ Nothing Repaired ---------- Lgt. Treads | 31% | -8/Materials Humpback | 71% | -8/Materials Spk. Treads | 29% | -8/Materials Alien Tech Used ----------------- Core Expander Integrated Reactor Achievements -------------- None Challenges ------------ None Game ------ Seed RecyclingMiningSubcomponent Manual? 0 Play Time 02:21:48 Cumulative 680.1 hours Start 2025.06.05 @ 17:42:46 End 2025.06.05 @ 20:06:42 Sessions 1 Manual Loads 0 Difficulty Rogue Special Mode None Game No. 152 Rogue 152 Adventurer 0 Explorer 0 Win Type - Total 40 Types 11/6/7/2/1/1/8/2/1/1 Lore% 69 Gallery% 84 Achievement% 81 Wizard Run 0 Options --------- Layout 1 ASCII 0 Keyboard 0 Movement Numpad Keybinds 0 Fullscreen 2 Font 24/Smallcaps Map View 50x35 Zoom Use 2% Tactical HUD 1 Map Filters NONE Filters NONE Steam 1 RUN: 7d558039-a844-4094-ad06-d7ad8ead1b95